Cogmind - Beta 14 @@@ ROGUE MODE // 2024.10.30 @ 14:43:59 Player: void Result: Destroyed by Y-54 Guardian with Flak Gun Performance ------------- Evolutions (3) 1500 Regions Visited (7) 1400 Robots Destroyed (61) 305 Value Destroyed (2325) 2325 Prototype IDs (3) 60 Alien Tech Used (0) 0 Bonus (70) 70 TOTAL SCORE: 5660 Bonus ------- Follower Combat Kills 93 Friendly Fire -23 Cogmind --------- Core Integrity 0/700 Matter 223/300 Energy 100/100 System Corruption 12% Temperature Cool (18) Movement Core (50) Location -7/Storage Parts ------- > --- POWER (2) -------- (None) > --- PROPULSION (3) --- (None) > --- UTILITY (5) ------ Improved Terrain Scanner > --- WEAPON (3) ------- Hammer > --- INVENTORY (5) ---- Matter Filter Advanced ECM Suite Lightning Gun Peak State ------------ > --- POWER ------------ Improved Ion Engine Improved Deuterium Engine > --- PROPULSION ------- Cooled Airjet Cooled Airjet Cooled Airjet > --- UTILITY ---------- Improved Heat Sink Large Storage Unit Force Booster Medium Armor Plating > --- WEAPON ----------- Heavy Particle Cannon Gauss Rifle Flak Gun > --- INVENTORY -------- Aluminum Leg Carbon-fiber Leg Carbon-fiber Leg Gravmag System Gravmag System Improved Heat Sink Improved Terrain Scanner Matter Filter Advanced ECM Suite Lightning Gun Flak Cannon Hammer Heavy Mace [Rating: 46] Favorites ----------- Power Ion Engine Engine Ion Engine Power Core Micro Nuclear Core Propulsion Aluminum Leg Leg Aluminum Leg Wheel Wheel Hover Unit Cooled Airjet Utility Large Storage Unit Device Experimental Sensor Array Storage Large Storage Unit Processor Improved Signal Interpreter Protection Medium Armor Plating Weapon Small Laser Energy Gun Small Laser Energy Cannon Heavy Particle Cannon Ballistic Gun Assault Rifle Ballistic Cannon Flak Cannon Launcher Grenade Launcher Special Weapon Mining Laser Impact Weapon Heavy Mace Special Melee Weapon Datajack Build | -11 -10 -10 -9 -9 -8 -7 -7 ------- Run | Yrd Mat Min Mat Min Mat Fac Sto Slots Evolved 6 | . . . 2 . 2 2 . Power 1 | . . . . . 1 . . Propulsion 1 | . . . . . 1 . . Utility 3 | . . . 2 . . 1 . Weapon 1 | . . . . . . 1 . Parts Attached 105 | 9 1 3 16 5 11 3 57 Power 12 | 3 . . 1 . 3 . 5 Engine 10 | 3 . . 1 . 3 . 3 Core 2 | . . . . . . . 2 Reactor . | . . . . . . . . Propulsion 21 | 2 . . 2 . 3 . 14 Treads . | . . . . . . . . Leg 17 | 2 . . 2 . 3 . 10 Wheel 1 | . . . . . . . 1 Hover 3 | . . . . . . . 3 Flight . | . . . . . . . . Utility 31 | 2 1 1 7 1 1 1 17 Device 21 | 1 . 1 5 1 . 1 12 Storage 4 | 1 1 . 1 . . . 1 Processor 1 | . . . . . 1 . . Hackware . | . . . . . . . . Protection 5 | . . . 1 . . . 4 Artifact . | . . . . . . . . Weapon 41 | 2 . 2 6 4 4 2 21 Energy Gun 12 | 1 . 1 2 2 4 . 2 Energy Cannon 3 | . . . . . . 1 2 Ballistic Gun 11 | 1 . . 3 1 . 1 5 Ballistic Cannon 2 | . . . . . . . 2 Launcher 2 | . . . . . . . 2 Special Weapon 2 | . . 1 1 . . . . Impact Weapon 7 | . . . . . . . 7 Slashing Weapon . | . . . . . . . . Piercing Weapon . | . . . . . . . . Special Melee Weapon 2 | . . . . 1 . . 1 Unidentified Prototypes 3 | . . 1 . . 1 . 1 Parts Lost 43 | . . . 4 . 1 . 38 Power 8 | . . . . . 1 . 7 Propulsion 8 | . . . . . . . 8 Utility 15 | . . . 2 . . . 13 Weapon 12 | . . . 2 . . . 10 Highest Loss Streak 13 | . . . 2 . 1 . 13 To Critical Strikes . | . . . . . . . . Average Slot Usage (%) 91 | . 100 100 94 90 98 100 86 Engine 11 | . 14 14 11 11 17 15 9 Leg 20 | . 28 28 22 22 26 23 14 Hover 2 | . . . . . . . 6 Device 18 | . 14 14 23 24 18 23 15 Storage 10 | . 14 14 11 11 9 7 8 Processor 2 | . . . . . 8 7 3 Protection 2 | . . . 5 . . . 5 Energy Gun 9 | . 14 12 4 17 12 7 4 Energy Cannon 1 | . . . . . . 7 2 Ballistic Gun 7 | . 14 14 17 3 5 7 4 Impact Weapon 1 | . . . . . . . 4 Peak Build Rating 46 | 7 8 16 22 23 32 39 46 Average Rating 25 | 5 7 9 19 21 29 38 34 On Entrance 17 | . 7 7 16 21 23 30 39 Naked Turns . | . . . . . . . . Heaviest Build 65 | 14 19 19 39 31 34 45 65 Greatest Support 45 | 20 20 20 26 26 36 36 45 Greatest Overweight (x) 9 | 3 . . 1 1 . 1 9 Average Overweight (x) . | . . . 1 1 . 1 1 Largest Inventory Capacity 15 | 8 10 10 15 15 15 15 15 Average Capacity 13 | 7 8 10 12 15 15 15 14 Most Carried 15 | 4 7 10 10 15 15 14 15 Average Carried 10 | 2 5 7 8 12 14 13 10 Final Capacity 15 | 8 10 10 15 15 15 15 5 Final Carried 15 | 4 6 10 7 15 15 13 3 Class Distribution -------------------- 49% | Scavenger-Mutant 35% | Mutant 11% | Scavenger-Skirmisher 3% | Gunner Dominant Class ---------------- Mutant | -10/Materials Mutant | -10/Mines Mutant | -9/Materials Scavenger-Mutant | -9/Mines Scavenger-Mutant | -8/Materials Scavenger-Skirmisher | -7/Factory Scavenger-Mutant | -7/Storage Resources | -11 -10 -10 -9 -9 -8 -7 -7 ----------- Run | Yrd Mat Min Mat Min Mat Fac Sto Matter Collected 1700 | 302 . 49 297 157 86 . 809 Remotely . | . . . . . . . . Salvage Created 2441 | 115 56 . 640 14 236 . 1380 Parts 132 | 6 4 . 41 2 18 . 61 Haulers Intercepted 1 | . 1 . . . . . . Recyclers Shooed 2 | . . . . . . . 2 Parts Field Recycled . | . . . . . . . . Retrieved Matter . | . . . . . . . . Parts Self-Destructed . | . . . . . . . . Prevented . | . . . . . . . . Kills | -11 -10 -10 -9 -9 -8 -7 -7 ------- Run | Yrd Mat Min Mat Min Mat Fac Sto Combat Hostiles Destroyed 52 | . . . 16 1 5 . 30 Melee 7 | . . . . . . . 7 Guns 30 | . . . 16 1 5 . 8 Cannons 6 | . . . . . . . 6 AOE 2 | . . . . . . . 2 Classes Destroyed 13 | 2 1 . 5 . . . 5 Worker 1 | . . . . . . . 1 Builder 1 | . . . . . . . 1 Tunneler 1 | 1 . . . . . . . Hauler 1 | . 1 . . . . . . Recycler 1 | 1 . . . . . . . Watcher 4 | . . . 1 . 3 . . Swarmer 6 | . . . 3 1 2 . . Grunt 29 | . . . 11 . 2 . 16 Brawler 2 | . . . 1 . . . 1 Duelist 1 | . . . . . . . 1 Sentry 9 | . . . 1 . 1 . 7 Hunter 1 | . . . . . . . 1 Programmer 4 | . . . . . . . 4 Best Kill Streak 5 | 2 1 . 5 1 4 . 3 Combat Bots Only 5 | . . . 5 1 2 . 3 Max Kills in Single Turn 2 | 1 1 . 2 1 2 . 2 Gunslinging 1 | . . . 1 . 1 . . Exploded 1 | . . . . . . . 1 Melee 1 | . . . . . . . 1 Uniques/NPCs Destroyed . | . . . . . . . . Combat | -11 -10 -10 -9 -9 -8 -7 -7 -------- Run | Yrd Mat Min Mat Min Mat Fac Sto Hostile Shots Fired 588 | . . . 79 5 12 . 492 Missed 170 | . . . 18 2 3 . 147 Damage Taken 5263 | . . . 748 64 114 . 4337 Core 822 | . . . 104 . 18 . 700 Absorbed by Shields . | . . . . . . . . Core Remaining (%) 92 | 100 . 100 . 74 96 . . Volleys Fired 133 | 4 2 2 48 3 10 . 64 Largest 3 | 2 2 2 2 2 2 . 3 Hottest 166 | 60 60 100 100 95 95 . 166 Shots Fired 281 | 8 4 3 94 6 19 . 147 Gun 226 | 8 4 2 93 6 19 . 94 Cannon 46 | . . . . . . . 46 Launcher 7 | . . . . . . . 7 Special 2 | . . 1 1 . . . . Kinetic 167 | 4 2 1 80 . 8 . 72 Thermal 97 | 4 2 2 11 3 11 . 64 Explosive 7 | . . . . . . . 7 Electromagnetic 10 | . . . 3 3 . . 4 Robot Hit Streak 15 | 5 4 . 13 1 6 . 15 Robot Miss Streak 8 | 1 . . 5 6 1 . 8 Penetration Max 1 | . . . . . . . 1 Secondary Targets 5 | . . . 4 . 1 . . Max Gunslinging Chain 1 | . . . 1 . 1 . . Shots Hit Robots 232 | 6 3 . 61 2 11 . 149 Core Hits 126 | 3 2 . 31 2 9 . 79 Critical Kills 4 | . . . . . . . 4 Critical Parts Destroyed 5 | . . . . . 1 . 4 Critical Strikes 10 | . . . . . 1 . 9 Burn 1 | . . . . . . . 1 Meltdown 1 | . . . . . . . 1 Destroy 2 | . . . . . 1 . 1 Smash 6 | . . . . . . . 6 Melee Attacks 81 | . . . . 1 . . 80 Impact 80 | . . . . . . . 80 Slashing . | . . . . . . . . Piercing . | . . . . . . . . Sneak Attacks 3 | . . . . 1 . . 2 Combat Hostiles 2 | . . . . . . . 2 Follow-up Attacks 1 | . . . . . . . 1 Damage Inflicted 5043 | 69 36 . 805 37 214 . 3882 Guns 2445 | 69 36 . 805 37 214 . 1284 Cannons 754 | . . . . . . . 754 Explosions 356 | . . . . . . . 356 Melee 1488 | . . . . . . . 1488 Ramming . | . . . . . . . . Kinetic 1986 | 27 24 . 700 . 159 . 1076 Thermal 1083 | 42 12 . 77 . 55 . 897 Explosive 356 | . . . . . . . 356 Electromagnetic 130 | . . . 28 37 . . 65 Impact 1488 | . . . . . . . 1488 Slashing . | . . . . . . . . Piercing . | . . . . . . . . Highest Corruption 12 | . . . 1 1 . . 12 Average Corruption 1 | . . . 1 1 . . 2 Corruption Purged . | . . . . . . . . Corruption Blocked . | . . . . . . . . Effects 19 | . . . 4 7 . . 8 Message Errors 5 | . . . 1 2 . . 2 Matter Fused 7 | . . . 2 2 . . 3 Heat Flow Errors 2 | . . . . 1 . . 1 Energy Discharges 1 | . . . 1 . . . . Data Loss (minor) 4 | . . . . 2 . . 2 Overload Shots . | . . . . . . . . Overflow Damage 162 | . . . . . . . 162 Projectiles . | . . . . . . . . Explosions . | . . . . . . . . Melee 162 | . . . . . . . 162 Knockbacks 15 | . . . . . . . 15 Impact 9 | . . . . . . . 9 Kinetic 6 | . . . . . . . 6 Secondary . | . . . . . . . . Self-Inflicted Damage 5 | . . . . . . . 5 Shots 1 | . . . . . . . 1 Rammed . | . . . . . . . . Targets Rammed . | . . . . . . . . Kicked . | . . . . . . . . Crushed . | . . . . . . . . Highest Temperature 653 | . . 20 21 169 47 . 653 Average Temperature 136 | . . 10 9 58 16 . 178 Received Heat Transfer 1524 | . . . 279 . 9 . 1236 Effects 18 | . . . . . . . 18 Shutdowns 6 | . . . . . . . 6 Energy Bleed 3 | . . . . . . . 3 Interference 2 | . . . . . . . 2 Short Circuit 3 | . . . . . . . 3 Damage (minor) 1 | . . . . . . . 1 Damage (major) 3 | . . . . . . . 3 Siege Activations . | . . . . . . . . Robots Corrupted 6 | . . . . . . . 6 Combat Hostiles 6 | . . . . . . . 6 Parts Fried 6 | . . . . . . . 6 Impact Corruptions 9 | . . . . . . . 9 Robots Melted 1 | . . . . . . . 1 Combat Hostiles 1 | . . . . . . . 1 Parts Melted 5 | . . . . . 1 . 4 Heat Transferred 2090 | 100 25 . 175 . 125 . 1665 Parts Sabotaged . | . . . . . . . . Parts Stolen . | . . . . . . . . Parts Stripped . | . . . . . . . . Power Chain Reactions . | . . . . . . . . Alert | -11 -10 -10 -9 -9 -8 -7 -7 ------- Run | Yrd Mat Min Mat Min Mat Fac Sto Peak Influence 377 | 10 25 10 377 133 162 11 346 Initial 133 | . 6 9 . 133 8 4 4 Average 96 | 4 14 8 171 67 76 9 129 Maximum Alert Level 1 | . . . 1 . . . 1 Low Security (%) 86 | 100 100 100 58 100 100 100 80 Level 1 13 | . . . 41 . . . 19 Level 2 . | . . . . . . . . Level 3 . | . . . . . . . . Level 4 . | . . . . . . . . Level 5 . | . . . . . . . . High Security . | . . . . . . . . Max Security . | . . . . . . . . Squads Dispatched 16 | . . . 3 . 1 . 12 Investigation 4 | . . . 2 . . . 2 Extermination 3 | . . . . . . . 3 Reinforcement 4 | . . . 1 . 1 . 2 Assault 2 | . . . . . . . 2 Garrison 3 | . . . . . . . 3 Intercept . | . . . . . . . . Searches Triggered . | . . . . . . . . Construction Impeded 2 | . . . . . 1 . 1 Haulers Reinforced 1 | . . . . . . . 1 Active Scanning Responses . | . . . . . . . . Cargo Convoy Interrupts . | . . . . . . . . Stealth | -11 -10 -10 -9 -9 -8 -7 -7 --------- Run | Yrd Mat Min Mat Min Mat Fac Sto Distress Signals 5 | . . . 2 . . . 3 Communications Jammed . | . . . . . . . . Distress Signals . | . . . . . . . . Times Spotted 94 | . . . 33 5 10 . 46 Peak Tracking Total 7 | . . . 7 4 4 . 7 Tactical Retreats 10 | . . . 4 1 1 . 4 Traps | -11 -10 -10 -9 -9 -8 -7 -7 ------- Run | Yrd Mat Min Mat Min Mat Fac Sto Traps Triggered 3 | . . . 1 1 . . 1 Indirectly . | . . . . . . . . Trap Hack Attempts . | . . . . . . . . Triggered . | . . . . . . . . Disarmed . | . . . . . . . . Reprogrammed . | . . . . . . . . Reused 2 | . . . 2 . . . . Traps Extracted . | . . . . . . . . Installed 2 | . . . 2 . . . . Triggered 2 | . . . 2 . . . . Most Traps Carried 2 | . . 2 2 . . . . Machines | -11 -10 -10 -9 -9 -8 -7 -7 ---------- Run | Yrd Mat Min Mat Min Mat Fac Sto Machines Disabled 2 | . . . . . . . 2 Max in Single Turn 1 | . . . . . . . 1 Machines Repaired . | . . . . . . . . Machines Dismantled . | . . . . . . . . Machines Sabotaged . | . . . . . . . . Overloaded Fab Kills . | . . . . . . . . Hacking | -11 -10 -10 -9 -9 -8 -7 -7 --------- Run | Yrd Mat Min Mat Min Mat Fac Sto Machines Accessed 20 | . 1 1 2 2 5 1 8 Terminals 18 | . 1 1 2 1 4 1 8 Fabricators . | . . . . . . . . Repair Stations 1 | . . . . . 1 . . Recycling Units . | . . . . . . . . Scanalyzers . | . . . . . . . . Garrison Access . | . . . . . . . . Total Hacks 39 | . 2 2 4 2 12 2 15 Successful 15 | . 2 . . 1 4 1 7 Failed 24 | . . 2 4 1 8 1 8 Catastrophic 10 | . . 1 3 1 1 1 3 Database Lockouts . | . . . . . . . . Manual 9 | . . 2 2 1 1 1 2 Terminals 37 | . 2 2 4 1 11 2 15 Fabricators . | . . . . . . . . Repair Stations 1 | . . . . . 1 . . Recycling Units . | . . . . . . . . Scanalyzers . | . . . . . . . . Garrison Access . | . . . . . . . . Terminal Hacks 15 | . 2 . . 1 4 1 7 Open Door 6 | . . . . 1 . . 5 Branch Access Points 3 | . 1 . . . 1 1 . Unreport Threat 1 | . . . . . 1 . . Locate Traps 1 | . . . . . . . 1 Security Status 1 | . . . . . 1 . . Patrol Status 1 | . . . . . . . 1 Hauler Manifests 1 | . 1 . . . . . . Zone Layout 1 | . . . . . 1 . . Fabricator Hacks . | . . . . . . . . Repair Station Hacks . | . . . . . . . . Recycling Unit Hacks . | . . . . . . . . Scanalyzer . | . . . . . . . . Garrison Access Hacks . | . . . . . . . . Unauthorized Hacks . | . . . . . . . . Terminals . | . . . . . . . . Fabricators . | . . . . . . . . Repair Stations . | . . . . . . . . Recycling Units . | . . . . . . . . Scanalyzers . | . . . . . . . . Garrison Access . | . . . . . . . . Data Cores Recovered . | . . . . . . . . Used . | . . . . . . . . Hacking Detections 12 | . . 1 2 1 3 1 4 Full Trace Events 2 | . . . 1 . . . 1 Feedback Events . | . . . . . . . . Feedback Blocked . | . . . . . . . . Robot Schematics Acquired . | . . . . . . . . Robots Built . | . . . . . . . . Authchips . | . . . . . . . . Time . | . . . . . . . . Total Robot Build Rating . | . . . . . . . . Part Schematics Acquired . | . . . . . . . . Parts Built . | . . . . . . . . Authchips . | . . . . . . . . Time . | . . . . . . . . Total Part Build Rating . | . . . . . . . . Parts Repaired . | . . . . . . . . Time . | . . . . . . . . Parts Recycled . | . . . . . . . . Recycled Matter . | . . . . . . . . Retrieved Matter . | . . . . . . . . Retrieved Components . | . . . . . . . . Parts Scanalyzed . | . . . . . . . . Part Schematics Acquired . | . . . . . . . . Parts Damaged . | . . . . . . . . Bothacking | -11 -10 -10 -9 -9 -8 -7 -7 ------------ Run | Yrd Mat Min Mat Min Mat Fac Sto Used RIF Installer . | . . . . . . . . Robots Hacked 1 | . . . . 1 . . . Non-combat 1 | . . . . 1 . . . Combat . | . . . . . . . . Robot Hacks Applied 1 | . . . . 1 . . . parse_system 1 | . . . . 1 . . . Relay Couplers Released . | . . . . . . . . Fabnet Peak Effective % . | . . . . . . . . Robots Rewired . | . . . . . . . . Allies Hacked 1 | . . . . . . . 1 Hacks Repelled . | . . . . . . . . Allies | -11 -10 -10 -9 -9 -8 -7 -7 -------- Run | Yrd Mat Min Mat Min Mat Fac Sto Total Allies 5 | . . . . 3 . . 2 Largest Group 3 | . . . . 3 3 . 2 Highest-Rated Group 62 | . . . . 40 40 . 62 Highest-Rated Ally 31 | . . . . 16 16 . 31 Total Orders . | . . . . . . . . Ally Attacks 42 | . . . . 8 14 . 20 Total Damage 549 | . . . . 56 114 . 379 Kills 5 | . . . . 3 . . 2 Allies Corrupted . | . . . . . . . . Allies Melted . | . . . . . . . . Intel | -11 -10 -10 -9 -9 -8 -7 -7 ------- Run | Yrd Mat Min Mat Min Mat Fac Sto Robot Analysis Total . | . . . . . . . . Derelict Logs Recovered 4 | . . 1 . 3 . . . Drone Launches . | . . . . . . . . Drone Recoveries . | . . . . . . . . Exploration | -11 -10 -10 -9 -9 -8 -7 -7 ------------- Run | Yrd Mat Min Mat Min Mat Fac Sto Turns Passed 4643 | 95 113 457 702 1081 366 137 1692 Spaces Moved 2022 | 52 79 368 225 528 219 71 480 Core 16 | 10 . . . . . . 6 Treads . | . . . . . . . . Legs 1844 | 42 79 368 225 528 219 71 312 Wheels 9 | . . . . . . . 9 Hover 153 | . . . . . . . 153 Flight . | . . . . . . . . Fastest Speed 50 | 50 120 120 190 190 120 190 102 Average Speed 160 | 125 120 120 190 190 120 190 170 Slowest Speed 500 | 200 120 120 190 190 120 190 500 Overloaded Moves . | . . . . . . . . Propulsion Burnouts . | . . . . . . . . Robots Hopped . | . . . . . . . . Cave-ins Triggered . | . . . . . . . . Exploration Rate (%) 37 | 4 15 81 25 89 22 1 59 Regions Visited 7 Branch Regions 3 Pre-discovered Areas 3 | . . 1 . 2 . . . Known Exits Taken 4 | . 1 . . 1 1 1 . Unknown Exits Taken 3 | 1 . 1 1 . . . . Scrap Searched 6 | . . 3 . 3 . . . Spaces Dug 8 | . . 1 1 . . . 6 Terrain Destroyed 41 | . . 1 1 . . . 39 Melee 6 | . . . . . . . 6 Projectile 12 | . . 1 1 . . . 10 AOE 23 | . . . . . . . 23 Terrain Rammed . | . . . . . . . . Walls Destroyed . | . . . . . . . . Machines Disabled . | . . . . . . . . Actions | -11 -10 -10 -9 -9 -8 -7 -7 --------- Run | Yrd Mat Min Mat Min Mat Fac Sto Total 2999 | 69 93 377 404 598 303 73 1082 Wait 568 | . 9 1 95 54 48 . 361 Move 2015 | 51 78 367 224 527 218 70 480 Hop . | . . . . . . . . Pick Up 52 | 5 2 4 8 6 8 . 19 Fast Attach 24 | 6 . . 2 1 1 . 14 Attach 37 | 1 . . 6 . 4 2 24 Detach 9 | . . . 1 2 1 . 5 Swap 44 | 2 1 3 8 4 6 1 19 Drop 35 | . 1 . 10 . 7 . 17 Fire 133 | 4 2 2 48 3 10 . 64 Melee 80 | . . . . 1 . . 79 Ram . | . . . . . . . . Kick . | . . . . . . . . Crush . | . . . . . . . . Escape Stasis . | . . . . . . . . Rewire . | . . . . . . . . Trap 2 | . . . 2 . . . . Miscellaneous . | . . . . . . . . Route ------- -11/Scrapyard -10/Materials (discovered 2 exits: *Min x2) -10/Mines -9/Materials (discovered 2 exits: Mat / *Min) -9/Mines -8/Materials -7/Factory (discovered 3 exits: *Sto / Low x2) -7/Storage History --------- Turn | Location | Event 17 | -11/Scrapyard | Discovered new exit (range 16) 96 | -11/Scrapyard | Entered Materials 124 | -10/Materials | Discovered new exit (range 5) 152 | -10/Materials | Identified exit to Mines 209 | -10/Materials | Entered Mines 237 | -10/Mines | Learned location of Storage (-7) 281 | -10/Mines | Assembled infested the area 323 | -10/Mines | Build established: Mutant 457 | -10/Mines | Found a hidden stash of uninstalled traps 543 | -10/Mines | Found a damaged Exp. Sensor Array with a note attached 546 | -10/Mines | Found Prototype Device 556 | -10/Mines | Identified Exp. Sensor Array 627 | -10/Mines | Learned location of 1 exit from Materials 636 | -10/Mines | Discovered new exit (range 7) 666 | -10/Mines | Entered Materials 666 | -9/Materials | Evolved 2 slots: Utility x2 667 | -9/Materials | Identified exit to Materials 1334 | -9/Materials | Discovered new exit (range 16) 1368 | -9/Materials | Entered Mines 1503 | -9/Mines | Build established: Scavenger-Mutant 1532 | -9/Mines | Met a Derelict who couldn't figure out how to use a Trap Extractor 1587 | -9/Mines | Learned Materials terminal intel 1756 | -9/Mines | Found DCF Scrap (13 items) 1888 | -9/Mines | Assisted by bots powering up and referring to "LRC-V3" 1949 | -9/Mines | Learned location of Zion (-6) 2094 | -9/Mines | A weapon hastily lodged in a ceiling crevice suddenly fell to the ground 2348 | -9/Mines | Discovered exit to Materials (range 12) 2449 | -9/Mines | Entered Materials 2449 | -8/Materials | Accompanied by 3 allies 2449 | -8/Materials | Evolved 2 slots: Power x1, Propulsion x1 2450 | -8/Materials | Loaded intel: 12 terminal locations 2564 | -8/Materials | Lost 3 allies 2725 | -8/Materials | Discovered new exit (range 16) 2772 | -8/Materials | Identified exit to Factory 2815 | -8/Materials | Entered Factory 2815 | -7/Factory | Evolved 2 slots: Utility x1, Weapon x1 2853 | -7/Factory | Identified exit to Storage 2853 | -7/Factory | Identified exit to Lower Caves 2952 | -7/Factory | Entered Storage 3105 | -7/Storage | Build established: Scavenger-Skirmisher 3482 | -7/Storage | Lost 8 parts (2p3n2u1w) 3561 | -7/Storage | Met a pair of Derelict thieves 3725 | -7/Storage | Build established: Mutant 3820 | -7/Storage | Core integrity fell below 50% 3877 | -7/Storage | Lost 3 parts (1p2u) 4113 | -7/Storage | Lost 3 parts (1u2w) 4380 | -7/Storage | Garrison activated, responded to threat 4385 | -7/Storage | Build established: Scavenger-Mutant 4529 | -7/Storage | Lost 5 parts (2p1u2w) 4592 | -7/Storage | Core integrity fell below 20% 4631 | -7/Storage | System corruption reached 10% 4644 | -7/Storage | Destroyed by Y-54 Guardian with Flak Gun Last Messages --------------- 04620_ Imp. Heat Sink destroyed. 04622_ K-01 Serf collects debris. 04623_ W-25 Informer sends out distress signal. 04623_ Lrg. Storage Unit destroyed. 04623_ K-01 Serf collects debris. 04624_ P-70 Sage knocked back. 04626_ 0=DWN=J2AG9UA%GZH&MFREBT0I